bitfinex/quotes_ETHUSD_20250517
["timestamp","ask_amount","ask_price","bid_price","bid_amount"]
[1747494621256,4.03911926,2475.8,2475.6,1.31596555]
[1747494621418,7.768,2476.1,2475.2,1.26770647]
[1747494621419,4.03973559,2475.5,2475.2,1.26770647]
[1747494621959,4.03973559,2475.5,2475.3,0.55]
[1747494623232,4.03950533,2475.6,2475.3,0.55]
[1747494625578,4.03932086,2475.7,2475.3,0.55]
[1747494625579,4.03934781,2475.7,2475.3,0.55]
[1747494625776,4.85224718,2475.9,2475.3,4.58984608]
[1747494625976,4.03916977,2475.8,2475.3,5.90566133]
[1747494626146,4.03896669,2475.9,2475.5,4.58948975]
[1747494626347,4.03887946,2476.0,2475.6,7.782]
[1747494626565,4.03896368,2475.9,2475.6,7.782]
[1747494628180,4.03887946,2476.0,2475.6,7.782]
[1747494628181,4.03909949,2475.8,2475.6,7.782]
[1747494628345,4.03926162,2475.7,2475.6,8.332]
[1747494628745,4.03917345,2475.8,2475.6,8.332]
[1747494628980,4.03917345,2475.8,2475.7,7.782]
[1747494629674,4.03909847,2475.8,2475.7,7.782]
[1747494629976,4.03887342,2476.0,2475.7,7.782]
[1747494629977,4.03902419,2475.9,2475.7,7.782]
[1747494631183,4.03909847,2475.8,2475.7,7.782]
[1747494632066,4.03899442,2475.9,2475.7,7.782]
[1747494632267,10.8933,2476.3,2475.7,8.6152]
[1747494632469,10.8933,2476.3,2475.8,0.7923]
[1747494632470,4.0386091,2476.1,2475.8,0.7923]
[1747494634087,4.03880533,2476.0,2475.8,0.7923]
[1747494637880,4.03851918,2476.2,2475.8,0.7923]
[1747494638203,4.03861544,2476.1,2475.8,0.7923]
[1747494638406,4.03861544,2476.1,2475.8,2.19197278]
[1747494640107,4.03861544,2476.1,2475.9,0.55]
[1747494641112,4.03877221,2476.0,2475.9,0.55]
[1747494642108,4.03877221,2476.0,2475.9,8.316]
[1747494646720,4.03868405,2476.1,2475.9,8.316]
[1747494646915,4.03811985,2476.4,2475.9,9.1476]
[1747494647116,4.0384652,2476.2,2476.1,0.55]
[1747494647823,11.80218733,2476.4,2476.1,0.55]
[1747494648127,4.03829227,2476.3,2476.1,0.55]
[1747494648481,4.03788022,2476.6,2476.1,0.55]
[1747494648720,4.03814305,2476.4,2476.1,0.55]
[1747494648919,4.03805229,2476.5,2476.3,0.55]
[1747494649082,4.03811985,2476.4,2476.3,0.55]
[1747494649278,4.03811985,2476.4,2476.1,0.55]
[1747494649494,4.03821073,2476.4,2476.1,0.55]
[1747494649839,4.03834949,2476.3,2476.1,0.55]
[1747494650139,4.03834949,2476.3,2476.1,1.99173353]
[1747494651217,4.80492604,2476.5,2476.1,1.99173353]
[1747494651429,4.03820629,2476.4,2476.1,1.99173353]
[1747494651625,4.03791889,2476.6,2476.1,6.03031742]
[1747494651823,4.03791889,2476.6,2476.3,0.55]
[1747494652024,4.03811985,2476.4,2476.3,0.55]
[1747494652329,4.0380536,2476.5,2476.3,0.55]
[1747494653030,4.03811985,2476.4,2476.3,0.55]
[1747494653234,4.03824213,2476.4,2476.2,7.765]
[1747494653529,4.03835271,2476.3,2476.2,7.765]
[1747494655528,4.0386091,2476.1,2476.0,7.765]
[1747494658640,4.03837976,2476.3,2476.0,8.315]
[1747494658842,11.80037976,2476.3,2476.0,8.315]
[1747494659944,4.03837976,2476.3,2476.0,8.315]
[1747494660347,4.03845138,2476.2,2476.0,8.315]
[1747494661544,7.762,2476.4,2476.0,8.315]
[1747494661743,14.11791822,2476.6,2476.1,5.41501382]
[1747494662050,17.841,2476.6,2476.1,5.41501382]
[1747494662545,4.03797737,2476.5,2476.1,5.41501382]
[1747494663831,11.79888189,2476.6,2476.3,0.55]
[1747494664349,4.03788189,2476.6,2476.3,0.55]
[1747494664543,4.03811985,2476.4,2476.3,0.55]
[1747494664747,4.03804193,2476.5,2476.3,0.55]
[1747494666549,4.03740224,2476.9,2476.5,0.55]
[1747494666865,11.79832455,2476.9,2476.5,12.34879954]
[1747494667354,11.79832455,2476.9,2476.5,8.311]
[1747494667651,4.03732455,2476.9,2476.5,8.311]
[1747494667841,4.03732455,2476.9,2476.6,1.3175536]
[1747494668360,4.03750825,2476.8,2476.6,1.3175536]
[1747494669218,4.0371893,2477.0,2476.7,0.55]
[1747494669423,4.0374677,2476.8,2476.7,8.311]
[1747494670535,0.8139,2477.2,2476.7,9.27385536]
[1747494670864,4.0374677,2476.8,2476.7,9.27385536]
[1747494671462,4.0374677,2476.8,2476.7,1.51285536]
[1747494671754,4.03763071,2476.7,2476.3,0.48160647]
[1747494671957,4.03811985,2476.4,2476.3,7.76]
[1747494672518,4.03811985,2476.4,2476.2,0.48160647]
[1747494672820,4.03828292,2476.3,2476.2,8.61498195]
[1747494673021,4.03811985,2476.4,2476.2,9.16498195]
[1747494673232,4.03811985,2476.4,2476.2,1.40498195]
[1747494673427,4.03811985,2476.4,2476.2,9.16498195]
[1747494674263,4.03811985,2476.4,2476.2,1.40498195]
[1747494674424,4.03811985,2476.4,2476.3,7.76]
[1747494675275,4.03811985,2476.4,2476.2,0.92337548]
[1747494675440,4.03811985,2476.4,2476.3,7.76]
[1747494676167,4.03811985,2476.4,2476.2,0.92337548]
[1747494676332,4.03811985,2476.4,2476.3,7.761]
[1747494676967,4.03811985,2476.4,2476.2,0.92337548]
[1747494677131,4.03811985,2476.4,2476.3,7.761]
[1747494678167,0.8139,2476.7,2476.4,0.55]
[1747494678391,10.08,2477.0,2476.6,0.55]
[1747494678533,11.79523905,2477.0,2476.6,0.55]
[1747494678941,11.79523905,2477.0,2476.6,4.58779352]
[1747494679236,11.79523905,2477.0,2476.7,0.8302]
[1747494679237,7.758,2477.0,2476.7,0.8302]
[1747494679439,11.79514936,2477.0,2476.7,1.37199935]
[1747494679969,4.03705159,2477.1,2476.7,1.37199935]
[1747494680168,4.03674453,2477.3,2476.8,12.34843807]
[1747494680389,4.03694257,2477.2,2476.8,8.311]
[1747494680537,4.03694257,2477.2,2476.8,12.34846091]
[1747494680737,4.03694257,2477.2,2477.0,0.55]
[1747494680938,4.0367019,2477.3,2477.0,0.55]
[1747494681274,4.03689606,2477.2,2477.0,0.55]
[1747494681452,4.03628832,2477.6,2477.2,0.55]
[1747494682053,4.83287346,2477.8,2477.4,0.55]
[1747494682267,7.757,2477.7,2477.4,0.55]
[1747494682572,4.03589738,2477.8,2477.4,0.55]
[1747494682792,14.91261694,2478.0,2477.6,0.55]
[1747494683088,4.03542655,2478.1,2477.8,0.55]
[1747494683292,7.756,2478.2,2477.8,8.31]
[1747494683454,4.03537077,2478.1,2477.9,0.7601]
[1747494683787,7.756,2478.2,2477.9,1.3101]
[1747494683788,4.03551251,2478.0,2477.9,1.3101]
[1747494684933,4.03551251,2478.0,2477.8,8.31]
[1747494684934,4.03567537,2477.9,2477.8,8.31]
[1747494686595,4.03567537,2477.9,2477.8,7.76]
[1747494687439,4.03583824,2477.8,2477.7,7.759]
[1747494688571,4.03583824,2477.8,2477.7,7.758]
[1747494688973,4.03583824,2477.8,2477.5,0.7601]
[1747494689169,4.03583824,2477.8,2477.7,7.758]
[1747494689357,4.03613442,2477.7,2477.6,7.758]
[1747494689778,4.03613442,2477.7,2477.5,0.55]
[1747494690385,4.03616402,2477.6,2477.5,0.55]
[1747494690544,4.03608816,2477.7,2477.5,0.55]
[1747494691147,11.78886589,2477.8,2477.4,7.758]
[1747494691148,4.03640843,2477.5,2477.4,7.758]
[1747494691947,4.03640843,2477.5,2477.4,7.752]
[1747494692290,4.03640843,2477.5,2477.3,0.55]
[1747494692596,4.03640843,2477.5,2477.4,7.752]
[1747494692776,4.03619538,2477.6,2477.4,7.752]
[1747494692777,4.03623773,2477.6,2477.4,7.752]
[1747494692963,4.03623773,2477.6,2477.3,0.55]
[1747494693164,4.03623773,2477.6,2477.4,7.752]
[1747494693365,4.03632694,2477.5,2477.4,7.752]
[1747494694289,4.0361706,2477.6,2477.4,7.752]
[1747494694757,11.78797164,2477.8,2477.5,1.3738]
[1747494695417,4.03602369,2477.7,2477.5,1.3738]
[1747494695591,4.03602369,2477.7,2477.5,2.91851647]
[1747494697722,0.8041,2478.1,2477.5,2.91851647]
[1747494697919,11.78679714,2477.9,2477.5,2.91851647]
[1747494698081,4.03600835,2477.7,2477.5,2.91851647]
[1747494698410,7.751,2477.9,2477.5,2.91851647]
[1747494698709,4.03583824,2477.8,2477.7,0.55]
[1747494700248,4.03583824,2477.8,2477.6,0.55]
[1747494700450,4.03600113,2477.7,2477.6,0.55]
[1747494701546,7.751,2477.9,2477.3,2.28476986]
[1747494701727,4.03626697,2477.6,2477.4,8.302]
[1747494702356,4.03626697,2477.6,2477.4,11.04910723]
[1747494703347,4.03603559,2477.7,2477.4,11.04910723]
[1747494703556,0.8041,2478.1,2477.5,0.8229]
[1747494703740,8.819,2478.6,2477.8,0.55]
[1747494703910,4.03534132,2478.2,2477.8,0.55]
[1747494704150,4.03534991,2478.1,2477.8,0.55]
[1747494704314,4.03534991,2478.1,2477.9,8.5749]
[1747494705558,0.819,2478.6,2478.0,0.55]
[1747494705731,4.03493352,2478.4,2478.2,0.55]
[1747494705927,4.035024,2478.3,2478.2,0.55]
[1747494706339,4.03493201,2478.4,2478.2,0.55]
[1747494706718,4.035024,2478.3,2478.2,0.55]
[1747494708441,4.035024,2478.3,2477.9,8.5749]
[1747494708755,4.03534966,2478.1,2478.0,7.751]
[1747494709443,4.03530586,2478.2,2478.1,0.55]
[1747494709848,4.03496449,2478.4,2478.1,0.55]
[1747494710072,4.03503706,2478.3,2478.1,0.55]
[1747494710590,4.03494895,2478.4,2478.1,0.55]
[1747494710900,4.03488707,2478.4,2478.1,1.45852]
[1747494711247,11.78165917,2478.6,2478.1,5.49379765]
[1747494711477,11.78065917,2478.6,2478.1,5.49379765]
[1747494711681,11.78047705,2478.7,2478.3,0.55]
[1747494711990,7.746,2478.7,2478.3,1.08630404]
[1747494712193,4.03484425,2478.5,2478.2,0.93508987]
[1747494712397,4.0348232,2478.5,2478.2,0.93508987]
[1747494712554,4.035024,2478.3,2478.2,0.93508987]
[1747494712898,4.03476465,2478.5,2478.2,0.93508987]
[1747494713069,4.03490116,2478.4,2478.2,0.93508987]
[1747494713268,4.03460157,2478.6,2478.2,1.87737353]
[1747494713499,4.03477897,2478.5,2478.2,1.87737353]
[1747494713870,7.746,2478.7,2478.2,5.91245024]
[1747494714077,4.03460168,2478.6,2478.3,0.38508987]
[1747494714590,4.03470381,2478.5,2478.3,0.38508987]
[1747494714782,4.03470239,2478.5,2478.3,1.06720275]
[1747494715777,4.03470239,2478.5,2478.3,0.68211288]
[1747494716079,4.0348612,2478.4,2478.3,0.68211288]
[1747494716260,4.0348612,2478.4,2478.2,1.49228366]
[1747494716460,4.03478041,2478.5,2478.2,1.49228366]
[1747494716702,4.035024,2478.3,2478.2,0.55]
[1747494716904,4.03493261,2478.4,2478.2,0.55]
[1747494718205,4.035024,2478.3,2478.2,0.55]
[1747494719200,7.744,2478.6,2478.2,0.55]
[1747494719409,4.035024,2478.3,2478.2,0.55]
[1747494719593,4.0349011,2478.4,2478.2,0.55]
[1747494719799,11.77861214,2478.6,2478.2,0.55]
[1747494720113,4.035024,2478.3,2478.2,0.55]
[1747494720412,4.03494934,2478.4,2478.2,0.55]
[1747494720772,11.77857235,2478.6,2478.2,0.55]
[1747494720773,4.03472144,2478.5,2478.2,0.55]
[1747494721083,4.03534966,2478.1,2478.0,8.3]
[1747494721393,4.0348612,2478.4,2478.0,9.26104]
[1747494721561,4.03502487,2478.3,2478.0,9.26104]
[1747494721767,4.03502487,2478.3,2478.0,8.3]
[1747494722401,4.03562768,2478.0,2477.8,0.7604]
[1747494722600,4.03562768,2478.0,2477.7,0.48160647]
[1747494722601,4.03583824,2477.8,2477.7,0.48160647]
[1747494722800,11.77783824,2477.8,2477.7,0.48160647]
[1747494724005,4.03605903,2477.7,2477.3,0.7604]
[1747494724200,4.03605903,2477.7,2477.4,3.5477157]
[1747494724605,4.03617756,2477.6,2477.4,3.5477157]
[1747494724787,4.03632694,2477.5,2477.4,2.9977157]
[1747494725298,4.03623733,2477.6,2477.4,2.9977157]
[1747494725502,4.03632694,2477.5,2477.4,2.9977157]
[1747494725699,4.03632694,2477.5,2477.3,0.55]
[1747494726010,7.742,2477.7,2477.5,0.55]
[1747494726618,11.77803306,2477.7,2477.5,0.55]
[1747494726786,4.03616402,2477.6,2477.5,0.55]
[1747494727906,4.03634663,2477.5,2477.2,25.9966]
[1747494728205,4.03625423,2477.6,2477.3,3.14966]
[1747494728406,4.03633111,2477.5,2477.3,3.14966]
[1747494728765,4.03648986,2477.4,2477.3,7.744]
[1747494729581,4.03639492,2477.5,2477.2,25.181]
[1747494729869,4.0366528,2477.3,2477.2,25.181]
[1747494731619,4.03651442,2477.4,2477.2,25.181]
[1747494732219,4.0366528,2477.3,2477.2,25.181]
[1747494732726,4.03651442,2477.4,2477.2,25.181]
[1747494732925,4.0366528,2477.3,2477.2,25.181]
[1747494733223,7.741,2477.6,2477.4,4.03636972]
[1747494733428,7.741,2477.9,2477.4,0.55]
[1747494734010,7.741,2477.9,2477.4,4.03639872]
[1747494734011,11.77775009,2477.9,2477.4,4.03639872]
[1747494734184,11.77775009,2477.9,2477.5,0.55]
[1747494734393,11.77775009,2477.9,2477.6,0.45863987]
[1747494734591,11.77675009,2477.9,2477.6,0.45863987]
[1747494735004,4.03575009,2477.9,2477.6,0.45863987]
[1747494736448,4.03558866,2478.0,2477.6,0.45863987]
[1747494736607,7.741,2478.0,2477.8,0.55]
[1747494736807,4.03567537,2477.9,2477.8,0.55]
[1747494740746,4.03557153,2478.0,2477.8,0.55]
[1747494741111,4.03500573,2478.4,2478.0,4.58549254]
[1747494741341,4.03500573,2478.4,2478.0,0.55]
[1747494741742,4.03510142,2478.3,2478.0,0.55]
[1747494741905,4.0347956,2478.5,2478.0,4.58543327]
[1747494742114,4.0347956,2478.5,2478.3,0.7893]
[1747494743245,7.739,2478.7,2478.4,0.55]
[1747494743449,11.77339883,2478.7,2478.4,0.55]
[1747494743621,4.03457019,2478.6,2478.4,0.55]
[1747494744757,4.03445516,2478.7,2478.4,0.55]
[1747494744927,4.03445516,2478.7,2478.4,1.86184681]
[1747494745253,4.034543,2478.6,2478.4,1.86184681]
[1747494746449,11.77232027,2478.8,2478.4,1.86184681]
[1747494746658,4.03439885,2478.7,2478.4,1.86184681]
[1747494746948,4.03439885,2478.7,2478.5,0.66861017]
[1747494747664,4.03439885,2478.7,2478.4,1.86184681]
[1747494751774,4.03455618,2478.6,2478.4,1.86184681]
[1747494751977,4.0346984,2478.5,2478.4,0.55]
[1747494752278,4.0346074,2478.6,2478.4,0.55]
[1747494753067,4.03445045,2478.7,2478.4,0.55]
[1747494753264,7.734,2478.9,2478.4,0.55]
[1747494753465,4.03437782,2478.7,2478.4,1.45833]
[1747494753656,4.03437782,2478.7,2478.4,9.19233]
[1747494756487,4.03438169,2478.7,2478.4,9.19233]
[1747494759286,4.03417263,2478.9,2478.4,9.19233]
[1747494759581,4.03372527,2479.1,2478.8,0.55]
[1747494760467,4.03388967,2479.0,2478.8,0.55]
[1747494760986,4.0337981,2479.1,2478.9,7.734]
[1747494761551,4.03390395,2479.0,2478.9,8.284]
[1747494762634,10.08,2480.2,2478.9,9.97436]
[1747494762915,0.8008,2479.9,2479.1,0.55]
[1747494763057,1.9574584,2480.0,2479.1,0.55]
[1747494763058,4.0333826,2479.4,2479.1,0.55]
[1747494763258,4.03337503,2479.4,2479.1,0.55]
[1747494764093,4.03347307,2479.3,2479.1,0.55]
[1747494764253,7.631,2479.7,2479.1,0.774036]
[1747494764458,4.03314918,2479.5,2479.1,0.774036]
[1747494764893,11.76407106,2479.6,2479.1,4.80769579]
[1747494765706,4.03332694,2479.4,2479.1,8.283]
[1747494766803,4.03315342,2479.5,2479.1,8.283]
[1747494767101,4.03327545,2479.4,2479.1,8.283]
[1747494767287,4.03327545,2479.4,2479.1,0.55]
[1747494767474,4.03311003,2479.5,2479.1,8.283]
[1747494768101,4.03311003,2479.5,2479.1,0.55]
[1747494768287,4.03324494,2479.4,2479.1,8.283]
[1747494769009,4.03342568,2479.3,2479.1,8.283]
[1747494769167,4.0333727,2479.4,2479.1,8.283]
[1747494769367,4.0333727,2479.4,2479.1,0.55]
[1747494769581,4.0333727,2479.4,2479.1,8.282]
[1747494770105,4.0333727,2479.4,2479.1,7.732]
[1747494770106,4.03355921,2479.2,2479.1,7.732]
[1747494770512,4.03355921,2479.2,2478.9,0.55]
[1747494770684,4.03355921,2479.2,2478.9,8.282]
[1747494771706,0.7705,2479.4,2478.9,0.55]
[1747494771999,4.03372191,2479.1,2479.0,7.732]
[1747494776418,4.03388463,2479.0,2478.9,0.55]
[1747494776582,4.03372191,2479.1,2478.9,8.282]
[1747494778223,4.03388463,2479.0,2478.9,7.732]
[1747494778424,4.03380323,2479.1,2478.9,7.732]
[1747494781342,0.7705,2479.4,2478.5,9.04620647]
[1747494781343,4.03418995,2478.9,2478.5,9.04620647]
[1747494781649,4.03453562,2478.6,2478.5,8.21360647]
[1747494781809,4.03453562,2478.6,2478.5,10.92465173]
[1747494782137,4.03453562,2478.6,2478.5,11.86047153]
[1747494782295,4.03425298,2478.8,2478.5,11.31047153]
[1747494782497,4.03445653,2478.7,2478.5,0.86742627]
[1747494783730,4.03445653,2478.7,2478.4,25.156]
[1747494783936,4.03445653,2478.7,2478.5,0.55]
[1747494784141,0.761,2478.9,2478.5,0.55]
[1747494784439,4.03421755,2478.8,2478.5,0.55]
[1747494784643,11.76198413,2479.0,2478.5,2.42863193]
[1747494784800,4.0341363,2478.9,2478.6,0.38588273]
[1747494785128,4.03421073,2478.8,2478.6,0.38588273]
[1747494785360,4.03362817,2479.2,2478.8,4.03420914]
[1747494785564,11.76157656,2479.2,2478.9,1.09168091]
[1747494786423,4.0337408,2479.1,2478.8,0.55]
[1747494787762,4.0337408,2479.1,2478.9,0.38597183]
[1747494789567,4.0337408,2479.1,2478.8,0.55]
[1747494790263,4.03362098,2479.2,2478.8,0.55]
[1747494790471,11.76044189,2479.3,2478.8,0.55]
[1747494790646,4.03363858,2479.2,2478.8,1.4951355]
[1747494791279,4.03372625,2479.1,2478.8,1.4951355]
[1747494793281,4.03371624,2479.2,2478.9,0.38614618]
[1747494793576,4.03374304,2479.1,2478.9,0.38614618]
[1747494793784,4.03388463,2479.0,2478.9,8.11414618]
[1747494794085,4.81468463,2479.0,2478.9,0.38614618]
[1747494794687,4.03437285,2478.7,2478.6,0.48160647]
[1747494795884,4.0346984,2478.5,2478.4,17.424]
[1747494796183,4.0348612,2478.4,2478.3,7.728]
[1747494796889,4.03514195,2478.3,2478.1,8.278]
[1747494797180,4.03514195,2478.3,2478.1,9.22972065]
[1747494798777,4.03514195,2478.3,2478.2,0.38599906]
[1747494800589,4.03541112,2478.1,2477.9,7.728]
[1747494801187,4.03551251,2478.0,2477.9,8.278]
[1747494801375,4.03544019,2478.1,2477.9,0.55]
[1747494801967,4.0352652,2478.2,2477.9,0.55]
[1747494802258,7.726,2478.5,2478.2,0.7595]
[1747494802456,4.034883,2478.4,2478.2,0.7595]
[1747494803287,4.035024,2478.3,2478.2,1.3095]
[1747494803473,4.035024,2478.3,2478.2,0.55]
[1747494809300,4.03493045,2478.4,2478.2,0.55]
[1747494809596,4.035024,2478.3,2478.2,1.55004107]
[1747494810158,4.03493215,2478.4,2478.2,1.55004107]
[1747494811997,4.035024,2478.3,2478.2,1.55004107]
[1747494812163,4.035024,2478.3,2478.2,0.55]
[1747494812701,4.03494494,2478.4,2478.2,0.93574949]
[1747494813062,0.788,2479.0,2478.4,0.7943]
[1747494813294,4.03469825,2478.6,2478.4,0.7943]
[1747494814804,4.03427078,2478.8,2478.4,0.7943]
[1747494815000,0.788,2479.5,2478.7,0.55]
[1747494815354,4.0335518,2479.3,2478.9,0.55]
[1747494815489,0.788,2479.5,2478.9,4.62427954]
[1747494815490,4.03332935,2479.4,2478.9,4.62427954]
[1747494815692,4.03341401,2479.3,2479.1,0.55]
[1747494816496,4.03331573,2479.4,2479.1,0.55]
[1747494817027,11.75816253,2479.5,2479.1,8.275]
[1747494817028,4.03340962,2479.3,2479.1,8.275]
[1747494817217,4.03340962,2479.3,2479.1,9.50589929]
[1747494818534,4.03348833,2479.3,2479.1,8.275]
[1747494819632,4.03332659,2479.4,2479.1,8.275]
[1747494820003,4.03316551,2479.5,2479.2,0.7815]
[1747494820209,11.75616551,2479.5,2479.2,2.09052942]
[1747494820735,4.03328451,2479.4,2479.2,2.09052942]
[1747494824547,4.03339652,2479.3,2479.2,2.64052942]
[1747494827627,4.03355921,2479.2,2479.1,7.725]
[1747494827955,4.03397809,2479.0,2478.8,7.723]
[1747494830561,4.03361904,2479.2,2478.9,0.55]
[1747494830970,4.78924034,2479.3,2478.9,0.55]
[1747494831155,0.7558,2479.3,2478.9,0.55]
[1747494831479,4.03357631,2479.2,2478.9,1.78070795]
[1747494831867,4.03373697,2479.1,2478.9,1.78070795]
[1747494836311,4.03388463,2479.0,2478.9,1.78070795]
[1747494836609,4.03404735,2478.9,2478.8,8.273]
[1747494836996,10.8573,2479.2,2478.6,7.723]
[1747494837196,4.03437285,2478.7,2478.6,7.723]
[1747494837993,4.03453562,2478.6,2478.5,0.48160647]
[1747494838198,4.03453562,2478.6,2478.5,1.03160647]
[1747494838507,4.03444565,2478.7,2478.5,1.03160647]
[1747494838719,14.11370739,2479.2,2478.7,0.794]
[1747494838894,4.03380286,2479.1,2478.7,0.794]
[1747494839101,7.718,2479.0,2478.7,0.794]
[1747494839306,4.03395803,2479.0,2478.7,0.794]
[1747494839507,11.75195803,2479.0,2478.7,0.794]
[1747494839731,4.0342101,2478.8,2478.7,0.794]
[1747494839928,4.0342101,2478.8,2478.6,0.55]
[1747494840638,4.0342101,2478.8,2478.7,0.38572186]
[1747494841924,4.03412638,2478.9,2478.7,0.38572186]
[1747494842226,4.03395759,2479.0,2478.8,0.55]
[1747494842622,4.03404735,2478.9,2478.8,0.55]
[1747494843330,4.03404735,2478.9,2478.8,0.93572186]
[1747494845094,4.03404735,2478.9,2478.8,0.38572186]
[1747494845384,4.81134735,2478.9,2478.8,0.38572186]
[1747494845650,12.81134735,2478.9,2478.8,0.38572186]
[1747494845987,4.03453562,2478.6,2478.5,0.48160647]
[1747494846193,12.52783562,2478.6,2478.5,0.48160647]
[1747494847791,12.52783562,2478.6,2478.0,0.38572186]
[1747494847792,4.03534966,2478.1,2478.0,0.38572186]
[1747494849236,4.03493881,2478.4,2478.0,1.27529405]
[1747494849396,4.03502948,2478.3,2478.0,1.27529405]
[1747494849596,4.03502948,2478.3,2478.0,0.88957219]
[1747494851233,11.75096711,2478.4,2478.0,0.88957219]
[1747494851436,4.03505037,2478.3,2478.0,0.88957219]
[1747494851611,4.03505037,2478.3,2478.1,0.86055722]
[1747494853642,0.7774,2478.9,2478.2,1.3516]
[1747494853803,4.03408203,2478.9,2478.5,0.8016]
[1747494854002,4.03423868,2478.8,2478.5,0.8016]
[1747494854497,0.7774,2479.1,2478.6,0.55]
[1747494854693,10.08,2479.6,2478.6,4.58444116]
[1747494854694,4.03388956,2479.0,2478.6,4.58444116]
[1747494854921,4.03362601,2479.2,2478.8,0.55]
[1747494855094,11.74862601,2479.2,2478.8,0.55]
[1747494855298,11.74862601,2479.2,2478.9,0.8016]
[1747494855533,4.03362601,2479.2,2478.9,0.8016]
[1747494855738,4.03355921,2479.2,2478.9,1.39405011]
[1747494855901,7.715,2479.3,2478.9,0.8016]
[1747494856104,4.033736,2479.1,2478.9,0.8016]
[1747494857240,4.03326996,2479.4,2479.0,0.55]
[1747494857404,4.03326996,2479.4,2479.0,0.9352527]
[1747494857703,4.03326996,2479.4,2479.1,1.34878201]
[1747494858031,4.03340736,2479.3,2479.1,1.34878201]
[1747494859007,10.08,2479.6,2479.2,0.55]
[1747494859337,4.03308446,2479.5,2479.2,0.55]
[1747494859539,4.03324115,2479.4,2479.2,1.1432576]
[1747494860142,14.11295246,2479.6,2479.1,7.717]
[1747494860340,4.03388463,2479.0,2478.9,1.3516]
[1747494860573,4.03381013,2479.1,2478.9,9.0686]
[1747494860742,4.03388463,2479.0,2478.9,8.267]
[1747494861543,4.03410527,2478.9,2478.8,0.55]
[1747494862194,4.03410527,2478.9,2478.8,0.93520766]
[1747494863083,4.03410527,2478.9,2478.8,0.38520766]
[1747494863267,4.03395972,2479.0,2478.8,0.38520766]
[1747494863794,4.03395972,2479.0,2478.6,7.716]
[1747494863991,4.03395972,2479.0,2478.6,11.16160146]
[1747494864757,4.0340509,2478.9,2478.6,11.16160146]
[1747494864952,4.0340509,2478.9,2478.7,0.38527045]
[1747494866104,4.03374275,2479.1,2478.7,4.41963425]
[1747494866404,4.03374275,2479.1,2478.8,0.38527045]
[1747494866971,4.03389757,2479.0,2478.8,0.38527045]
[1747494867181,4.03404735,2478.9,2478.8,0.38527045]
[1747494867498,4.83094735,2478.9,2478.8,0.38527045]
[1747494867659,4.83094735,2478.9,2478.5,18.1891]
[1747494867660,4.0342101,2478.8,2478.7,0.38527045]
[1747494869158,4.03453562,2478.6,2478.3,1.3056]
[1747494869359,4.03453562,2478.6,2478.3,9.64935387]
[1747494870698,4.03453562,2478.6,2478.4,0.3853705]
[1747494871395,4.03443794,2478.7,2478.4,0.3853705]
[1747494871584,4.03462189,2478.6,2478.4,0.3853705]
[1747494872196,4.0346984,2478.5,2478.4,0.3853705]
[1747494872398,4.03463144,2478.6,2478.4,0.3853705]
[1747494872556,4.03463144,2478.6,2478.3,7.717]
[1747494872759,4.03463144,2478.6,2478.3,9.05307009]
[1747494874001,4.03463144,2478.6,2478.3,1.33607009]
[1747494874188,4.03463144,2478.6,2478.3,7.717]
[1747494874896,4.03437285,2478.7,2478.1,0.7619]
[1747494875097,4.034926,2478.4,2478.2,7.717]
[1747494875799,4.034926,2478.4,2478.3,0.38537884]
[1747494879107,4.034926,2478.4,2478.1,7.709]
[1747494879315,4.03517393,2478.3,2478.1,7.709]
[1747494879475,4.03518682,2478.2,2478.1,7.709]
[1747494879810,4.03536896,2478.1,2477.9,1.3789]
[1747494880006,4.03536896,2478.1,2478.0,8.259]
[1747494880195,4.03536896,2478.1,2478.0,0.38554964]
[1747494882372,4.03600113,2477.7,2477.6,8.19060647]
[1747494883910,4.03591434,2477.8,2477.6,8.19060647]
[1747494884112,4.03575762,2477.9,2477.6,8.19060647]
[1747494884315,4.03575762,2477.9,2477.6,9.05936007]
[1747494885610,4.03575762,2477.9,2477.6,8.67398526]
[1747494887003,4.03585302,2477.8,2477.6,8.67398526]
[1747494887209,4.03585302,2477.8,2477.6,7.709]
[1747494887416,4.03603373,2477.7,2477.6,7.71]
[1747494888016,4.03603373,2477.7,2477.5,0.55]
[1747494888017,4.03622307,2477.6,2477.5,0.55]
[1747494888312,4.03609347,2477.7,2477.5,8.26]
[1747494888517,4.03609347,2477.7,2477.5,8.64503875]
[1747494889420,4.03616402,2477.6,2477.5,0.38503875]
[1747494889622,4.03616402,2477.6,2477.5,8.09603875]
[1747494890217,4.03616402,2477.6,2477.3,0.55]
[1747494890439,4.03616402,2477.6,2477.4,7.711]
[1747494890618,4.03632694,2477.5,2477.3,0.55]
[1747494890915,4.03632694,2477.5,2477.3,8.261]
[1747494891107,4.03632694,2477.5,2477.3,0.55]
[1747494891304,4.03632694,2477.5,2477.3,8.261]
[1747494891854,7.706,2477.6,2477.2,7.711]
[1747494892146,4.0366528,2477.3,2477.2,7.711]
[1747494892842,0.7644,2477.8,2477.3,0.55]
[1747494893041,4.03470181,2478.5,2477.5,0.55]
[1747494893042,7.706,2478.1,2477.5,0.55]
[1747494893250,4.03555358,2478.0,2477.6,4.03609552]
[1747494893451,4.03555358,2478.0,2477.6,0.38510335]
[1747494893748,4.03555358,2478.0,2477.7,7.711]
[1747494895050,4.03542845,2478.1,2477.8,0.8328]
[1747494896245,4.03558917,2478.0,2477.8,0.8328]
[1747494897979,4.03535544,2478.1,2477.8,0.8328]
[1747494898243,4.03567537,2477.9,2477.8,0.8328]
[1747494898443,4.03558277,2478.0,2477.8,0.8328]
[1747494899746,4.03583824,2477.8,2477.7,8.261]
[1747494899923,4.03600113,2477.7,2477.6,8.261]
[1747494900122,4.03592643,2477.8,2477.6,8.261]
[1747494900727,4.03592643,2477.8,2477.6,8.6467242]
[1747494901852,4.03568542,2477.9,2477.7,0.55]
[1747494902216,4.03546968,2478.1,2477.7,0.55]